bitfinex/quotes_BTCUSD_20230106
["timestamp","ask_amount","ask_price","bid_price","bid_amount"]
[1673012277508,0.3085,16773.0,16771.0,0.001]
[1673012277755,1.73860989,16773.0,16769.0,0.1989]
[1673012278006,0.41153888,16772.0,16771.0,0.007]
[1673012278247,1.07009199,16772.0,16768.0,0.87281326]
[1673012278487,0.23767789,16771.0,16768.0,0.4]
[1673012278991,0.23767789,16771.0,16768.0,0.87281326]
[1673012279252,0.23767789,16771.0,16768.0,1.46918326]
[1673012279513,0.596255,16772.0,16769.0,0.1973]
[1673012279759,1.200949,16773.0,16770.0,1.04380273]
[1673012279760,1.192449,16773.0,16770.0,1.04380273]
[1673012280000,0.17751374,16774.0,16771.0,0.705832]
[1673012280001,1.192351,16774.0,16771.0,0.705832]
[1673012280259,1.192351,16774.0,16771.0,0.73354673]
[1673012280840,1.68362687,16774.0,16771.0,0.73354673]
[1673012281049,1.68362687,16774.0,16771.0,0.1978]
[1673012281806,0.73217,16774.0,16771.0,0.73454673]
[1673012282044,0.136,16774.0,16772.0,0.1989]
[1673012282289,0.732169,16774.0,16772.0,0.1989]
[1673012282537,1.328329,16774.0,16772.0,0.1989]
[1673012283035,1.328329,16774.0,16771.0,0.001]
[1673012283036,0.732169,16774.0,16771.0,0.001]
[1673012283281,0.136,16774.0,16772.0,0.1978]
[1673012283534,0.59615,16775.0,16772.0,0.1978]
[1673012283790,0.136,16774.0,16772.0,0.26173347]
[1673012284020,0.136,16774.0,16772.0,0.1988]
[1673012284529,0.136,16774.0,16773.0,0.3962]
[1673012284781,0.136,16774.0,16773.0,1.37697626]
[1673012285040,0.46598535,16776.0,16773.0,1.37697626]
[1673012285276,0.46598535,16776.0,16775.0,0.1977]
[1673012285539,0.00015,16776.0,16775.0,0.705595]
[1673012286019,0.00015,16776.0,16775.0,0.1977]
[1673012286267,0.78559384,16777.0,16774.0,0.1973]
[1673012286518,1.31025551,16777.0,16774.0,0.1973]
[1673012286763,1.57669545,16777.0,16774.0,0.1973]
[1673012287002,1.07257762,16777.0,16774.0,0.1973]
[1673012287266,0.98063945,16777.0,16774.0,0.1973]
[1673012287515,1.08458262,16777.0,16774.0,0.2173]
[1673012287749,0.10845826,16776.0,16774.0,0.26023347]
[1673012288001,0.6130851,16777.0,16775.0,0.1989]
[1673012288265,0.0170241,16777.0,16775.0,0.1989]
[1673012288749,0.6080791,16777.0,16775.0,0.1989]
[1673012288995,1.2651331,16777.0,16775.0,0.2019]
[1673012289488,1.73703238,16777.0,16775.0,0.2019]
[1673012290266,1.2651331,16777.0,16775.0,0.2019]
[1673012291019,0.6690781,16777.0,16775.0,0.2019]
[1673012291786,1.2651321,16777.0,16775.0,0.003]
[1673012292853,1.4651321,16777.0,16775.0,0.003]
[1673012293096,0.14651321,16776.0,16775.0,0.003]
[1673012293401,0.74260221,16776.0,16775.0,0.003]
[1673012293849,0.74260221,16776.0,16773.0,0.67131326]
[1673012294114,0.9852801,16776.0,16775.0,0.018]
[1673012294376,0.74760221,16776.0,16775.0,0.018]
[1673012295903,1.34369121,16776.0,16775.0,0.018]
[1673012296153,1.64369121,16776.0,16775.0,0.018]
[1673012296699,2.26414721,16776.0,16775.0,0.018]
[1673012296924,3.14367371,16776.0,16775.0,0.018]
[1673012297207,2.56158768,16776.0,16775.0,0.018]
[1673012297434,1.68319174,16776.0,16775.0,0.018]
[1673012297938,2.69514774,16776.0,16775.0,0.018]
[1673012298191,2.29514774,16776.0,16775.0,0.018]
[1673012298940,2.56158768,16776.0,16775.0,0.018]
[1673012299195,2.5262715,16776.0,16775.0,0.018]
[1673012299456,1.38319174,16776.0,16775.0,0.018]
[1673012300080,1.197178,16776.0,16775.0,0.018]
[1673012300240,0.601089,16776.0,16775.0,0.018]
[1673012300527,0.005,16776.0,16775.0,0.55374673]
[1673012300794,0.005,16776.0,16775.0,0.68861326]
[1673012301051,0.005,16776.0,16775.0,1.19650426]
[1673012301325,0.005,16776.0,16775.0,1.99152926]
[1673012301593,0.005,16776.0,16775.0,2.58765426]
[1673012302117,0.005,16776.0,16775.0,2.98765426]
[1673012302933,0.005,16776.0,16775.0,2.39152926]
[1673012303193,0.005,16776.0,16775.0,2.98765426]
[1673012303450,0.005,16776.0,16775.0,2.39152926]
[1673012304268,0.005,16776.0,16775.0,2.19262926]
[1673012304824,0.005,16776.0,16775.0,1.59650426]
[1673012305369,0.005,16776.0,16775.0,1.123691]
[1673012306439,0.005,16776.0,16775.0,0.6158]
[1673012306798,0.005,16776.0,16775.0,1.123691]
[1673012307053,0.005,16776.0,16775.0,0.925891]
[1673012308845,0.005,16776.0,16775.0,0.525891]
[1673012309528,0.005,16776.0,16775.0,0.018]
[1673012309765,0.601089,16776.0,16775.0,0.018]
[1673012309972,1.43485589,16776.0,16775.0,0.018]
[1673012310200,0.005,16776.0,16775.0,0.018]
[1673012310427,0.005,16776.0,16775.0,0.08093347]
[1673012310428,0.0135,16776.0,16775.0,0.08093347]
[1673012310687,0.005,16776.0,16775.0,0.018]
[1673012310879,0.005,16776.0,16775.0,0.418]
[1673012311107,0.005,16776.0,16775.0,1.522016]
[1673012311330,0.005,16776.0,16775.0,1.39870426]
[1673012311997,0.005,16776.0,16775.0,1.59680426]
[1673012312213,0.005,16776.0,16775.0,1.123991]
[1673012312460,0.005,16776.0,16775.0,1.59680426]
[1673012312693,0.005,16776.0,16775.0,2.19292926]
[1673012312910,0.005,16776.0,16775.0,1.720116]
[1673012313132,0.005,16776.0,16775.0,2.19292926]
[1673012314294,0.005,16776.0,16775.0,1.59680426]
[1673012314566,0.005,16776.0,16775.0,1.123991]
[1673012315081,0.005,16776.0,16774.0,0.59640426]
[1673012315341,0.005,16776.0,16774.0,0.5977]
[1673012315613,0.005,16776.0,16773.0,2.0]
[1673012315614,1.51392317,16776.0,16773.0,2.0]
[1673012315905,1.61237763,16776.0,16773.0,2.0]
[1673012316198,0.17751374,16775.0,16773.0,2.0]
[1673012316473,1.19232,16774.0,16771.0,0.4]
[1673012316741,0.23767789,16774.0,16771.0,0.996265]
[1673012317007,0.23767789,16774.0,16773.0,0.004]
[1673012317335,0.17751374,16775.0,16773.0,0.596196]
[1673012317607,0.62170699,16776.0,16773.0,0.596196]
[1673012317608,0.014,16774.0,16773.0,0.46037806]
[1673012317843,0.014,16774.0,16772.0,1.65295253]
[1673012318100,0.014,16774.0,16772.0,1.05674253]
[1673012318348,0.014,16774.0,16772.0,1.05669754]
[1673012318607,1.21779899,16776.0,16772.0,1.05669754]
[1673012318608,1.39531273,16776.0,16772.0,1.05669754]
[1673012318864,0.015,16774.0,16773.0,0.004]
[1673012319116,0.19251374,16774.0,16772.0,0.46048754]
[1673012319361,0.19251374,16774.0,16772.0,0.004]
[1673012319362,0.20651374,16774.0,16772.0,0.004]
[1673012319608,0.17751374,16774.0,16771.0,1.45662894]
[1673012319894,0.41519163,16774.0,16772.0,0.004]
[1673012320127,0.17751374,16774.0,16772.0,0.00470544]
[1673012320372,0.44395368,16775.0,16772.0,1.05713904]
[1673012320623,0.014,16774.0,16772.0,1.12407251]
[1673012320870,0.014,16774.0,16772.0,1.65737004]
[1673012321383,0.014,16774.0,16773.0,0.46014816]
[1673012321627,0.62170699,16776.0,16773.0,0.46014816]
[1673012321628,0.44395368,16776.0,16773.0,1.85014016]
[1673012321865,0.19151374,16775.0,16774.0,0.46022479]
[1673012322115,0.17751374,16775.0,16773.0,1.389992]
[1673012322362,0.17751374,16775.0,16772.0,1.25948496]
[1673012322363,0.014,16774.0,16772.0,1.25948496]
[1673012322617,0.42919163,16774.0,16772.0,0.799125]
[1673012322874,0.68163157,16774.0,16771.0,1.65411196]
[1673012323115,0.17751374,16773.0,16771.0,1.65411196]
[1673012323364,0.17751374,16773.0,16771.0,1.65388638]
[1673012323616,0.17751374,16773.0,16772.0,0.00470544]
[1673012323867,0.17751374,16773.0,16771.0,2.25013238]
[1673012324140,0.23767789,16772.0,16771.0,0.996242]
[1673012324388,0.23767789,16772.0,16770.0,2.596282]
[1673012324389,0.44395368,16772.0,16770.0,2.596282]
[1673012324635,0.41519163,16772.0,16770.0,3.192562]
[1673012324884,0.41519163,16772.0,16771.0,0.004]
[1673012324885,0.68163157,16772.0,16771.0,0.004]
[1673012325141,0.44395368,16772.0,16770.0,2.0]
[1673012325378,0.45795368,16772.0,16771.0,0.004]
[1673012325620,0.62170699,16772.0,16770.0,2.0]
[1673012325880,0.178635,16771.0,16770.0,2.004]
[1673012326376,0.44507494,16771.0,16770.0,2.004]
[1673012326638,0.178635,16771.0,16770.0,0.004]
[1673012326877,0.44507494,16771.0,16770.0,0.004]
[1673012327895,0.44507494,16771.0,16769.0,1.46472953]
[1673012328128,0.192635,16771.0,16770.0,0.004]
[1673012328883,0.178635,16771.0,16769.0,1.00446732]
[1673012329142,0.178635,16771.0,16770.0,0.596302]
[1673012329143,0.192635,16771.0,16770.0,0.596302]
[1673012329390,0.80034199,16772.0,16770.0,0.596302]
[1673012329640,0.014,16771.0,16770.0,0.600302]
[1673012329890,0.014,16771.0,16770.0,0.596302]
[1673012329891,0.192635,16771.0,16770.0,0.596302]
[1673012330668,0.192635,16771.0,16769.0,1.00446732]
[1673012330916,0.192635,16771.0,16769.0,0.40816232]
[1673012330917,1.05201988,16771.0,16769.0,0.40816232]
[1673012331214,1.05201988,16771.0,16769.0,0.01216232]
[1673012331215,0.44507494,16770.0,16769.0,0.01216232]
[1673012331452,0.62170699,16770.0,16769.0,0.00816232]
[1673012331979,1.06792256,16770.0,16769.0,0.00816232]
[1673012332240,0.62308532,16770.0,16769.0,0.00816232]
[1673012332722,0.63808532,16770.0,16769.0,0.01216232]
[1673012332988,0.63808677,16770.0,16769.0,0.01216232]
[1673012333249,0.85725694,16770.0,16769.0,0.00816232]
[1673012333760,0.62308677,16770.0,16769.0,0.00816232]
[1673012334594,1.39640542,16770.0,16769.0,0.00816232]
[1673012334856,1.39640542,16770.0,16769.0,0.01216232]
[1673012334857,1.54424334,16770.0,16769.0,0.01216232]
[1673012335690,1.95274334,16770.0,16769.0,0.01216232]
[1673012335943,3.88900618,16770.0,16769.0,0.01216232]
[1673012336202,3.87300618,16770.0,16769.0,0.00816232]
[1673012336509,3.39746932,16770.0,16769.0,0.00816232]
[1673012336781,3.39675166,16770.0,16769.0,0.00816232]
[1673012337055,2.86295589,16770.0,16769.0,0.00816232]
[1673012337315,2.99795589,16770.0,16769.0,0.00816232]
[1673012337584,3.01078312,16770.0,16769.0,0.00816232]
[1673012339158,3.45611927,16770.0,16769.0,0.00816232]
[1673012339379,3.49747474,16770.0,16769.0,0.00816232]
[1673012339650,1.97166094,16770.0,16769.0,0.00816232]
[1673012340202,2.14978015,16770.0,16769.0,0.00816232]
[1673012340662,1.18871847,16770.0,16769.0,0.00816232]
[1673012340664,1.78502047,16770.0,16769.0,0.00816232]
[1673012340920,2.1413094,16770.0,16769.0,0.00816232]
[1673012341195,2.0944496,16770.0,16769.0,0.00816232]
[1673012341451,2.66113945,16770.0,16769.0,0.00816232]
[1673012341733,2.96963945,16770.0,16769.0,0.00816232]
[1673012341966,2.56963945,16770.0,16769.0,0.00816232]
[1673012342227,2.10291097,16770.0,16769.0,0.00816232]
[1673012342507,2.45913722,16770.0,16769.0,0.00816232]
[1673012342764,2.28094374,16770.0,16769.0,0.00816232]
[1673012343056,2.72626997,16770.0,16769.0,0.00816232]
[1673012343414,2.75913722,16770.0,16769.0,0.00816232]
[1673012343681,2.28097294,16770.0,16769.0,0.00816232]
[1673012343960,3.01493697,16770.0,16769.0,0.00816232]
[1673012344497,3.77103445,16770.0,16769.0,0.00816232]
[1673012344750,3.37103445,16770.0,16769.0,0.00816232]
[1673012345025,2.58078313,16770.0,16769.0,0.00816232]
[1673012345277,2.75900845,16770.0,16769.0,0.00816232]
[1673012345539,3.37103445,16770.0,16769.0,0.00816232]
[1673012346079,3.77687208,16770.0,16769.0,0.00816232]
[1673012346339,3.24307631,16770.0,16769.0,0.00816232]
[1673012346617,5.20739764,16770.0,16769.0,0.00816232]
[1673012346921,4.96971975,16770.0,16769.0,0.00816232]
[1673012347440,5.94021975,16770.0,16769.0,0.00816232]
[1673012350158,5.93762555,16770.0,16769.0,0.00816232]
[1673012352316,5.40382978,16770.0,16769.0,0.00816232]
[1673012353962,5.93762555,16770.0,16769.0,0.00816232]
[1673012354475,5.40382978,16770.0,16769.0,0.00816232]
[1673012355026,5.93762555,16770.0,16769.0,0.00816232]
[1673012355291,5.93762555,16770.0,16767.0,0.00759573]
[1673012355292,6.93056767,16770.0,16767.0,0.00759573]
[1673012355555,0.1989,16768.0,16767.0,0.00759573]
[1673012355812,4.27440653,16768.0,16767.0,0.00759573]
[1673012356293,5.05491561,16768.0,16767.0,0.00759573]
[1673012356549,7.82348886,16768.0,16767.0,0.00759573]
[1673012356809,8.41736599,16768.0,16767.0,0.00759573]
[1673012357068,7.94182913,16768.0,16767.0,0.00759573]
[1673012357355,7.49983785,16768.0,16767.0,0.00759573]
[1673012357604,5.49983785,16768.0,16767.0,0.00759573]
[1673012357863,4.19354807,16768.0,16767.0,0.00759573]
[1673012358145,3.92667074,16768.0,16767.0,0.00759573]
[1673012358994,3.13673135,16768.0,16767.0,0.00759573]
[1673012359524,3.74875735,16768.0,16767.0,0.00759573]
[1673012359795,4.48499555,16768.0,16767.0,0.00759573]
[1673012360103,4.75187288,16768.0,16767.0,0.00759573]
[1673012360364,4.64899555,16768.0,16767.0,0.00759573]
[1673012360617,4.78499555,16768.0,16767.0,0.00859573]
[1673012360877,5.05187288,16768.0,16767.0,0.00859573]
[1673012361132,5.6746148,16768.0,16767.0,0.00859573]
[1673012361407,5.27173747,16768.0,16767.0,0.00759573]
[1673012361674,5.40573747,16768.0,16767.0,0.00959573]
[1673012361931,5.27173747,16768.0,16767.0,0.00759573]
[1673012362191,5.31595077,16768.0,16767.0,0.00759573]
[1673012362449,5.35159011,16768.0,16767.0,0.00759573]
[1673012362743,5.82712697,16768.0,16767.0,0.00759573]
[1673012362997,5.71715836,16768.0,16767.0,0.00759573]
[1673012363254,7.3776215,16768.0,16767.0,0.00859573]
[1673012363525,7.85315836,16768.0,16767.0,0.00859573]
[1673012365352,8.3869983,16768.0,16767.0,0.00859573]
[1673012366117,7.85315836,16768.0,16767.0,0.00859573]
[1673012366375,7.85315836,16768.0,16764.0,0.00787199]
[1673012366376,0.4,16767.0,16764.0,0.00787199]
[1673012366661,0.64398092,16765.0,16764.0,0.00787199]
[1673012366935,3.87475598,16765.0,16764.0,0.00787199]
[1673012367198,3.58845393,16765.0,16764.0,0.00787199]
[1673012367463,3.58845393,16765.0,16764.0,0.00887199]
[1673012367464,3.94487497,16765.0,16764.0,0.00887199]
[1673012367731,3.9576033,16765.0,16764.0,0.00787199]
[1673012368062,4.68748043,16765.0,16764.0,0.00887199]
[1673012368608,5.16301729,16765.0,16764.0,0.00887199]
[1673012368867,4.67059625,16765.0,16764.0,0.00787199]
[1673012369119,4.45014973,16765.0,16764.0,0.00787199]
[1673012369381,4.31414973,16765.0,16764.0,0.00787199]
[1673012369643,4.92568659,16765.0,16764.0,0.00787199]
[1673012369896,4.45014973,16765.0,16764.0,0.00787199]
[1673012370416,4.05014973,16765.0,16764.0,0.00787199]
[1673012370691,2.40775753,16765.0,16764.0,0.00787199]
[1673012370946,1.78723153,16765.0,16764.0,0.00787199]
[1673012372486,1.52840373,16765.0,16764.0,0.00787199]
[1673012372763,1.35018833,16765.0,16764.0,0.00787199]
[1673012373022,1.52840373,16765.0,16764.0,0.00787199]
[1673012373301,1.79573153,16765.0,16764.0,0.00787199]
[1673012374083,1.65973153,16765.0,16764.0,0.00787199]
[1673012374344,1.66373153,16765.0,16764.0,0.01187199]
[1673012374637,1.84196265,16765.0,16764.0,0.01187199]
[1673012374900,2.32030611,16765.0,16764.0,0.01187199]
[1673012375162,1.83830458,16765.0,16764.0,0.00787199]
[1673012375419,1.46213321,16765.0,16764.0,0.00987199]
[1673012375672,1.38413321,16765.0,16764.0,0.00787199]
[1673012375982,1.64131935,16765.0,16764.0,0.00987199]
[1673012376248,1.78580294,16765.0,16764.0,0.00987199]
[1673012376507,1.51813321,16765.0,16764.0,0.00987199]
[1673012376775,1.79430294,16765.0,16764.0,0.00987199]
[1673012377288,1.52663321,16765.0,16764.0,0.00987199]
[1673012377541,1.79430294,16765.0,16764.0,0.00987199]
[1673012377813,2.11358971,16765.0,16764.0,0.00987199]
[1673012378074,2.47003623,16765.0,16764.0,0.00987199]
[1673012378342,1.97230458,16765.0,16764.0,0.00987199]
[1673012378834,1.37582458,16765.0,16764.0,0.00987199]
[1673012378835,1.19787578,16765.0,16764.0,0.00987199]
[1673012379098,1.97230458,16765.0,16764.0,0.00987199]
[1673012379936,1.37582458,16765.0,16764.0,0.00987199]
[1673012380402,0.59292126,16765.0,16764.0,0.26572199]
[1673012380660,0.32525153,16765.0,16764.0,0.12867199]
[1673012381170,0.14672833,16765.0,16764.0,0.24747199]
[1673012381430,0.14672833,16765.0,16764.0,0.34622199]
[1673012381953,0.14672833,16765.0,16764.0,0.74622199]
[1673012383211,0.32525153,16765.0,16764.0,0.74622199]
[1673012383462,0.32453382,16765.0,16764.0,0.60917199]
[1673012385039,0.59220355,16765.0,16764.0,0.60917199]
[1673012386034,0.77012687,16765.0,16764.0,0.60917199]
[1673012386284,0.94877571,16765.0,16764.0,0.67210546]
[1673012386585,0.14601062,16765.0,16764.0,1.40498799]
[1673012386834,0.14601062,16765.0,16764.0,2.00150399]
[1673012388321,0.01201062,16765.0,16764.0,1.99950399]
[1673012388874,0.02601062,16765.0,16764.0,2.02750399]
[1673012389119,0.01201062,16765.0,16764.0,1.99950399]
[1673012389374,0.02601062,16765.0,16764.0,2.02750399]
[1673012391444,0.02601062,16765.0,16764.0,1.43098799]
[1673012391886,0.20466976,16765.0,16764.0,1.03098799]
[1673012392140,0.20466976,16765.0,16764.0,0.23517199]
[1673012392387,0.47233949,16765.0,16764.0,0.23517199]
[1673012392924,0.82878601,16765.0,16764.0,0.23517199]
[1673012393183,0.65012687,16765.0,16764.0,0.95912889]
[1673012393487,0.65012687,16765.0,16764.0,0.23517199]
[1673012394034,0.65012687,16765.0,16764.0,0.63517199]
[1673012394290,0.47222579,16765.0,16764.0,0.63517199]
[1673012394552,0.20455606,16765.0,16764.0,0.63517199]
[1673012394813,0.20455606,16765.0,16764.0,0.95983416]
[1673012395069,0.20455606,16765.0,16764.0,1.55635016]
[1673012395512,0.02601062,16765.0,16764.0,2.15286616]
[1673012397885,0.02601062,16765.0,16764.0,2.15216039]
[1673012398396,0.02601062,16765.0,16764.0,1.82820399]
[1673012400659,0.02601062,16765.0,16764.0,2.24364227]
[1673012400917,0.02601062,16765.0,16764.0,2.44254227]
[1673012401167,0.02601062,16765.0,16764.0,2.02710399]
[1673012401673,0.01578662,16765.0,16764.0,2.02710399]
[1673012402199,0.01578662,16765.0,16764.0,1.82780399]
[1673012402712,0.014,16765.0,16764.0,1.82780399]
[1673012403236,0.014,16765.0,16764.0,1.62890399]
[1673012405163,0.00923468,16765.0,16764.0,1.62890399]
[1673012407564,0.00923468,16765.0,16764.0,1.82820399]
[1673012410693,0.00923468,16765.0,16764.0,2.02640399]
[1673012411265,0.00923468,16765.0,16764.0,3.44212419]
[1673012411514,0.17854544,16769.0,16765.0,0.1]
[1673012411772,0.17854544,16769.0,16768.0,0.1986]
[1673012412036,0.17854544,16769.0,16768.0,1.49407147]
[1673012412291,0.17854544,16769.0,16768.0,3.431138]
[1673012412557,0.17854544,16769.0,16768.0,3.391348]
[1673012412815,0.014,16769.0,16768.0,3.391348]
[1673012413340,0.19254544,16769.0,16768.0,3.391348]
[1673012413590,0.19254544,16769.0,16768.0,2.596374]
[1673012413807,0.17854544,16769.0,16768.0,2.3392076]
[1673012414108,0.45021517,16769.0,16768.0,2.3422076]
[1673012414361,0.44621517,16769.0,16768.0,2.3392076]
[1673012414632,0.19154544,16769.0,16768.0,0.3802076]
[1673012415091,0.44621517,16770.0,16768.0,0.794074]
[1673012415094,0.014,16769.0,16768.0,1.431448]
[1673012415358,0.17854544,16770.0,16768.0,1.390748]
[1673012415632,0.17854544,16770.0,16769.0,0.1993]
[1673012415894,1.88599776,16771.0,16769.0,1.391976]
[1673012416149,0.44621517,16770.0,16769.0,0.1993]
[1673012418268,0.19149186,16769.0,16767.0,1.812275]
[1673012419016,0.45916159,16769.0,16767.0,1.215892]
[1673012419270,0.45916159,16769.0,16767.0,0.836682]
[1673012419529,0.19149186,16769.0,16767.0,0.836682]
[1673012420321,0.013,16769.0,16768.0,0.13775561]
[1673012420598,0.013,16769.0,16768.0,1.48758827]
[1673012421116,0.17849186,16770.0,16768.0,1.48758827]
[1673012421396,0.17849186,16770.0,16768.0,1.52858827]
[1673012421663,0.014,16769.0,16768.0,1.37150361]
[1673012423016,1.88594418,16771.0,16768.0,1.33050361]
[1673012423275,0.014,16770.0,16768.0,1.43443708]
[1673012423540,0.01128259,16771.0,16769.0,0.1981]
[1673012423804,0.01128259,16771.0,16770.0,2.186806]
[1673012424092,0.01128259,16771.0,16770.0,1.85705314]
[1673012424615,0.02528259,16771.0,16770.0,3.85705314]
[1673012425142,0.01128259,16771.0,16770.0,3.85705314]
[1673012425800,0.01128259,16771.0,16770.0,3.65845314]
[1673012426293,0.02628259,16771.0,16770.0,3.69845314]
[1673012426548,0.01128259,16771.0,16770.0,3.65845314]
[1673012428605,0.02428259,16771.0,16770.0,4.31459425]
[1673012429116,0.02428259,16771.0,16770.0,4.61459425]
[1673012429624,0.02428259,16771.0,16770.0,5.01459425]
[1673012430428,0.0118789,16774.0,16771.0,0.04856518]
[1673012430971,0.0118789,16774.0,16773.0,0.397]
[1673012431268,0.0118789,16774.0,16773.0,2.40499184]
[1673012431523,0.0118789,16774.0,16773.0,3.40499184]
[1673012431785,0.0248789,16774.0,16773.0,3.40499184]
[1673012432605,0.0248789,16774.0,16773.0,3.70499184]
[1673012432606,0.02522831,16774.0,16773.0,3.70499184]
[1673012432877,0.03822831,16774.0,16773.0,4.02354098]
[1673012434979,0.03822831,16774.0,16773.0,4.28717984]
[1673012435232,0.03822831,16774.0,16773.0,4.22779507]
[1673012436260,0.02522831,16774.0,16773.0,4.17579507]
[1673012436523,0.02622831,16774.0,16773.0,4.31379507]
[1673012436767,0.02622831,16774.0,16773.0,3.81449507]
[1673012437326,0.02622831,16774.0,16773.0,4.31379507]
[1673012439888,0.02622831,16774.0,16773.0,4.01379507]
[1673012440401,0.02622831,16774.0,16773.0,3.39824653]
[1673012440650,0.02622831,16774.0,16773.0,3.19764653]
[1673012440899,0.02622831,16774.0,16773.0,3.73173081]
[1673012441406,1e-08,16775.0,16774.0,0.4]
[1673012441661,1e-08,16775.0,16774.0,2.1809285]
[1673012441921,1e-08,16775.0,16774.0,1.76532143]
[1673012442168,1e-08,16775.0,16774.0,3.76532143]
[1673012442684,0.01273888,16775.0,16774.0,3.50432143]
[1673012444213,0.01273888,16775.0,16774.0,5.10158466]
[1673012444467,0.01273888,16775.0,16774.0,5.21968466]
[1673012444725,0.01173888,16775.0,16774.0,5.43515119]
[1673012445495,0.01473888,16775.0,16774.0,5.97315119]
[1673012445740,0.01473888,16775.0,16774.0,5.67315119]
[1673012446317,0.01473888,16775.0,16774.0,5.13882143]
[1673012449575,0.01473888,16775.0,16774.0,3.13882143]
[1673012450335,0.01473888,16775.0,16774.0,3.55578636]
[1673012450584,0.01473888,16775.0,16774.0,3.43882143]
[1673012451080,0.01473888,16775.0,16774.0,3.13882143]
[1673012451599,0.01473888,16775.0,16774.0,3.43882143]
[1673012451851,0.01473888,16775.0,16774.0,3.13882143]
[1673012453388,0.01187883,16776.0,16775.0,0.42947776]
[1673012453635,0.01187883,16776.0,16775.0,2.0060769]
[1673012454664,0.02400675,16776.0,16775.0,2.1450769]
[1673012457236,0.02400675,16776.0,16775.0,2.0272769]
[1673012457497,0.02400675,16776.0,16775.0,1.6272769]
[1673012459808,0.02400675,16776.0,16775.0,2.0272769]
[1673012460355,0.02400675,16776.0,16775.0,2.5626003]
[1673012460621,0.02400675,16776.0,16775.0,4.50500981]
[1673012460878,0.02400675,16776.0,16775.0,4.68194609]
[1673012461144,0.02400675,16776.0,16775.0,4.85912684]
[1673012461915,0.02654863,16776.0,16775.0,5.48722684]
[1673012461916,0.02654863,16776.0,16775.0,5.48835766]
[1673012462203,0.02654863,16776.0,16775.0,5.72705748]
[1673012462468,0.02654863,16776.0,16775.0,6.08230112]
[1673012462725,0.0120241,16777.0,16776.0,1.08119725]
[1673012463016,0.0120241,16777.0,16776.0,5.78061668]
[1673012463317,0.0120241,16777.0,16776.0,5.90291541]
[1673012463577,0.02433857,16777.0,16776.0,5.90291541]
[1673012463828,0.02533857,16777.0,16776.0,6.04191541]
[1673012464633,0.02533857,16777.0,16776.0,5.86422551]
[1673012464894,0.02533857,16777.0,16776.0,5.86493077]
[1673012465153,0.02533857,16777.0,16776.0,5.86489955]
[1673012465942,0.02533857,16777.0,16776.0,5.56489955]
[1673012465943,0.02533857,16777.0,16776.0,6.04258945]
[1673012466220,0.02533857,16777.0,16776.0,5.92428945]
[1673012466480,0.02533857,16777.0,16776.0,6.01471594]
[1673012466745,0.02533857,16777.0,16776.0,6.13321594]
[1673012467045,0.02533857,16777.0,16776.0,7.89787835]
[1673012467282,3.857e-05,16777.0,16776.0,7.89787849]
[1673012467557,0.01238229,16778.0,16777.0,1.0281]
[1673012467819,0.01238229,16778.0,16777.0,4.66206948]
[1673012468086,0.01238229,16778.0,16777.0,4.51784933]
[1673012468354,0.01193591,16780.0,16779.0,0.6281]
[1673012468618,0.01193591,16780.0,16779.0,6.27850448]
[1673012468876,0.01193591,16780.0,16779.0,5.593503]
[1673012469137,0.01193591,16780.0,16779.0,5.94425793]
[1673012469882,0.01193591,16780.0,16779.0,5.23205843]
[1673012469883,0.01182709,16780.0,16779.0,5.33205843]
[1673012470150,0.01182709,16780.0,16779.0,5.77105843]
[1673012470674,0.01182709,16780.0,16779.0,6.12643914]
[1673012470940,0.01182709,16780.0,16779.0,6.75964027]
[1673012471201,0.01182709,16780.0,16779.0,6.87814027]
[1673012471458,1.3201,16785.0,16783.0,0.00015]
[1673012471721,1.3201,16785.0,16784.0,0.65873847]
[1673012471999,0.01350962,16787.0,16784.0,1.36002732]
[1673012472300,0.01350962,16787.0,16785.0,0.18143347]
[1673012472556,0.01350962,16787.0,16785.0,0.65869247]
[1673012473081,0.01350962,16787.0,16785.0,1.595759]
[1673012473335,0.01350962,16787.0,16785.0,0.595759]
[1673012473834,0.01350962,16787.0,16786.0,0.0595759]
[1673012474359,0.01350962,16787.0,16784.0,0.16588885]
[1673012474625,0.25118751,16787.0,16783.0,0.795971]
[1673012475180,0.25118751,16787.0,16783.0,0.00015]
[1673012475181,0.23767789,16786.0,16783.0,0.00015]
[1673012475446,0.23767789,16786.0,16785.0,0.139]
[1673012475712,1.16255296,16787.0,16783.0,0.00015]
[1673012475974,0.80652685,16787.0,16783.0,0.20108347]
[1673012476271,0.80652685,16787.0,16784.0,0.02010835]
[1673012476272,0.80452685,16787.0,16784.0,0.02010835]
[1673012476534,0.002,16786.0,16784.0,0.67884582]
[1673012476811,0.01350962,16787.0,16784.0,0.61591235]
[1673012477077,0.01550962,16787.0,16784.0,0.67884582]
[1673012477346,0.01550962,16787.0,16785.0,0.06788458]
[1673012477347,0.01350962,16787.0,16785.0,0.06788458]
[1673012477857,0.01550962,16787.0,16785.0,1.32235105]
[1673012478128,0.01550962,16787.0,16785.0,2.25941758]
[1673012478918,0.01350962,16787.0,16785.0,1.66365458]
[1673012479185,0.01550962,16787.0,16786.0,0.16636546]
[1673012479442,0.01350962,16787.0,16785.0,1.06788458]
[1673012479710,0.01550962,16787.0,16786.0,0.59643884]
[1673012480233,0.01550962,16787.0,16786.0,0.595734]
[1673012481804,0.01550962,16787.0,16786.0,1.191468]
[1673012481811,0.01350962,16787.0,16786.0,1.191468]
[1673012482074,0.01350962,16787.0,16786.0,1.51597686]
[1673012482075,0.01550962,16787.0,16786.0,1.51597686]
[1673012483111,0.01550962,16787.0,16786.0,0.92024286]
[1673012483363,0.01550962,16787.0,16786.0,0.32450886]
[1673012483620,0.01550962,16787.0,16786.0,1.330468]
[1673012484389,0.01550962,16787.0,16786.0,0.139]
[1673012486196,0.61120862,16787.0,16786.0,0.139]
[1673012486704,0.01550962,16787.0,16786.0,0.139]
[1673012486972,1.12920862,16787.0,16786.0,0.139]
[1673012487530,2.34543362,16787.0,16786.0,0.139]
[1673012487779,2.70161151,16787.0,16786.0,0.139]
[1673012488090,2.49957296,16787.0,16786.0,0.139]
[1673012488360,2.76393362,16787.0,16786.0,0.139]
[1673012488611,1.73390762,16787.0,16786.0,0.139]
[1673012488880,0.01350962,16787.0,16786.0,0.0139]
[1673012489140,0.04450962,16787.0,16786.0,0.011]
[1673012489675,0.44450962,16787.0,16786.0,0.011]
[1673012489683,1.04020862,16787.0,16786.0,0.011]
[1673012489933,0.04450962,16787.0,16786.0,0.011]
[1673012490201,0.04450962,16787.0,16783.0,0.00015]